bitfinex/quotes_BTCUSD_20240719
["timestamp","ask_amount","ask_price","bid_price","bid_amount"]
[1721425877429,0.14304,67068.0,67067.0,2.43591446]
[1721425877640,0.14304,67068.0,67067.0,2.63084154]
[1721425877842,0.14304,67068.0,67067.0,2.43591397]
[1721425878241,0.14304,67068.0,67067.0,2.39122634]
[1721425878477,0.14304,67068.0,67067.0,2.36322634]
[1721425878619,0.14304,67068.0,67067.0,1.92191397]
[1721425878827,0.14304,67068.0,67067.0,2.43591397]
[1721425879024,0.14304,67068.0,67067.0,1.89122634]
[1721425879234,0.14304,67068.0,67067.0,2.39122634]
[1721425879434,0.14304,67068.0,67067.0,1.51387677]
[1721425879884,0.14304,67068.0,67067.0,1.24548877]
[1721425880088,0.14304,67068.0,67067.0,0.97711909]
[1721425881727,0.14304,67068.0,67067.0,0.30614909]
[1721425882770,0.14304,67068.0,67067.0,0.30615675]
[1721425883000,0.14304,67068.0,67067.0,0.31657574]
[1721425887435,0.14304,67068.0,67067.0,0.18238174]
[1721425888514,0.814,67068.0,67067.0,0.028]
[1721425888936,0.88099592,67068.0,67067.0,0.028]
[1721425889134,0.88098802,67068.0,67067.0,0.014]
[1721425889336,0.814,67068.0,67067.0,0.014]
[1721425889571,0.814,67068.0,67067.0,0.022]
[1721425889742,0.814,67068.0,67067.0,0.008]
[1721425889965,0.814,67068.0,67067.0,0.022]
[1721425897875,0.9008,67068.0,67067.0,0.022]
[1721425901683,0.90985936,67068.0,67067.0,0.022]
[1721425901908,0.82305936,67068.0,67067.0,0.022]
[1721425902436,0.90985936,67068.0,67067.0,0.022]
[1721425904778,1.2960661,67068.0,67067.0,0.022]
[1721425905021,1.17824336,67068.0,67067.0,0.022]
[1721425905195,1.21518488,67068.0,67067.0,0.022]
[1721425905784,1.21602488,67068.0,67067.0,0.022]
[1721425906004,1.21670446,67068.0,67067.0,0.022]
[1721425906265,1.21670456,67068.0,67067.0,0.022]
[1721425907026,1.21670456,67068.0,67067.0,0.014]
[1721425907229,0.134212,67059.0,67052.0,0.000924]
[1721425907403,0.1658,67053.0,67052.0,0.000924]
[1721425907609,0.2321,67053.0,67052.0,0.000924]
[1721425909642,0.2321,67053.0,67052.0,0.014924]
[1721425909858,0.2321,67053.0,67052.0,0.028924]
[1721425914940,0.23214,67053.0,67052.0,0.028924]
[1721425915666,0.23214,67053.0,67052.0,0.0453322]
[1721425916632,0.23214,67053.0,67052.0,0.028924]
[1721425920004,0.20214,67053.0,67052.0,0.028924]
[1721425920958,0.21121399,67053.0,67052.0,0.028924]
[1721425921705,0.08684,67053.0,67052.0,0.18330574]
[1721425921950,0.08684,67053.0,67052.0,0.24265521]
[1721425923133,0.08684,67053.0,67052.0,0.18330574]
[1721425923381,4e-05,67053.0,67052.0,0.18330574]
[1721425923636,4e-05,67053.0,67052.0,0.85442574]
[1721425923874,4e-05,67053.0,67052.0,0.99522574]
[1721425928575,4e-05,67053.0,67052.0,0.72677774]
[1721425930335,4e-05,67053.0,67052.0,0.66587774]
[1721425930970,4e-05,67053.0,67052.0,0.18330574]
[1721425934612,0.04473994,67053.0,67052.0,0.18330574]
[1721425935212,0.04753394,67053.0,67052.0,0.18330574]
[1721425935418,0.04473994,67053.0,67052.0,0.18330574]
[1721425938273,0.04557994,67053.0,67052.0,0.18330574]
[1721425940979,0.003674,67053.0,67052.0,0.18330574]
[1721425941160,0.00088,67053.0,67052.0,0.18330574]
[1721425941364,0.003674,67053.0,67052.0,0.18330574]
[1721425944415,0.00088,67053.0,67052.0,0.18330574]
[1721425944797,0.003674,67053.0,67052.0,0.18330574]
[1721425945846,0.04838028,67053.0,67052.0,0.18330574]
[1721425946058,0.04558628,67053.0,67052.0,0.18330574]
[1721425947026,0.00088,67053.0,67052.0,0.18330574]
[1721425947381,0.003674,67053.0,67052.0,0.18330574]
[1721425947723,0.04839268,67053.0,67052.0,0.18330574]
[1721425948093,0.04559868,67053.0,67052.0,0.18330574]
[1721425950233,0.00088,67053.0,67052.0,0.18330574]
[1721425950634,0.08768,67053.0,67052.0,0.18330574]
[1721425957648,0.22508,67053.0,67052.0,0.18330574]
[1721425958437,0.14968,67053.0,67052.0,0.18330574]
[1721425960257,0.15478054,67053.0,67052.0,0.18330574]
[1721425960590,0.15477934,67053.0,67052.0,0.18330574]
[1721425963287,0.13241775,67053.0,67052.0,0.18330574]
[1721425963995,0.04561643,67053.0,67052.0,0.18330574]
[1721425964194,0.13241643,67053.0,67052.0,0.21515171]
[1721425964401,0.15478465,67053.0,67052.0,0.21515171]
[1721425964811,0.13241646,67053.0,67052.0,0.21515171]
[1721425965011,0.15478465,67053.0,67052.0,0.21515171]
[1721425966044,0.15478465,67053.0,67052.0,0.18330574]
[1721425970311,0.08768,67053.0,67052.0,0.18330574]
[1721425970516,0.15475471,67053.0,67052.0,0.18330574]
[1721425971181,0.08768,67053.0,67052.0,0.18330574]
[1721425971480,0.15475904,67053.0,67052.0,0.18330574]
[1721425972258,0.08768,67053.0,67052.0,0.18330574]
[1721425974328,0.17713032,67053.0,67052.0,0.18330574]
[1721425974946,0.08768,67053.0,67052.0,0.18330574]
[1721425975152,0.17713032,67053.0,67052.0,0.18330574]
[1721425976073,0.09913847,67053.0,67052.0,0.21515201]
[1721425976264,0.18593847,67053.0,67052.0,0.21515201]
[1721425976468,0.18593847,67053.0,67052.0,0.18330574]
[1721425978393,0.17713032,67053.0,67052.0,0.18330574]
[1721425978986,0.31135232,67053.0,67052.0,0.18330574]
[1721425979192,0.57979632,67053.0,67052.0,0.18330574]
[1721425979523,0.31135232,67053.0,67052.0,0.26230574]
[1721425980141,0.31137321,67053.0,67052.0,0.29483871]
[1721425980843,0.53216114,67053.0,67052.0,0.26230574]
[1721425981041,0.31923468,67053.0,67052.0,0.26230574]
[1721425981443,0.09821268,67053.0,67052.0,0.26230574]
[1721425981642,0.31923468,67053.0,67052.0,0.26230574]
[1721425981843,0.31923468,67053.0,67052.0,0.29483871]
[1721425982069,0.31923468,67053.0,67052.0,0.26230574]
[1721425982649,0.3199266,67053.0,67052.0,0.26230574]
[1721425983067,0.3199266,67053.0,67052.0,0.18330574]
[1721425983472,0.2331266,67053.0,67052.0,0.18330574]
[1721425985874,0.23204447,67053.0,67052.0,0.18330574]
[1721425987735,0.31884447,67053.0,67052.0,0.18330574]
[1721425988763,0.09782247,67053.0,67052.0,0.18330574]
[1721425988963,0.12910493,67053.0,67052.0,0.18330574]
[1721425989291,0.17712664,67053.0,67052.0,0.31890574]
[1721425990882,0.17712664,67053.0,67052.0,0.25890574]
[1721425991668,0.09032664,67053.0,67052.0,0.25890574]
[1721425991869,0.17712664,67053.0,67052.0,0.25890574]
[1721425992458,0.17709019,67053.0,67052.0,0.25890574]
[1721425993347,0.17709019,67053.0,67052.0,0.18330574]
[1721425993535,0.2186269,67053.0,67052.0,0.18330574]
[1721425995359,0.17709019,67053.0,67052.0,0.18330574]
[1721425995559,0.08768,67053.0,67052.0,0.18330574]
[1721425995763,0.1770781,67053.0,67052.0,0.18330574]
[1721425995965,0.08768,67053.0,67052.0,0.18330574]
[1721425996325,0.15472881,67053.0,67052.0,0.18330574]
[1721425999765,0.1770781,67053.0,67052.0,0.18330574]
[1721426001940,0.08768,67053.0,67052.0,0.18330574]
[1721426002078,0.17706514,67053.0,67052.0,0.18330574]
[1721426003622,0.17706514,67053.0,67052.0,0.028924]
[1721426003623,0.71883114,67053.0,67052.0,0.028924]
[1721426003826,1.166334,67053.0,67052.0,0.028924]
[1721426004050,1.20787112,67053.0,67052.0,0.028924]
[1721426004256,1.26335419,67053.0,67052.0,0.028924]
[1721426004859,1.37508562,67053.0,67052.0,0.028924]
[1721426005061,1.26335419,67053.0,67052.0,0.028924]
[1721426005263,1.26283432,67053.0,67052.0,0.028924]
[1721426005810,1.26283432,67053.0,67052.0,0.014924]
[1721426006022,1.3746053,67053.0,67052.0,0.014924]
[1721426006714,1.3746053,67053.0,67052.0,0.028924]
[1721426007901,1.3746053,67053.0,67052.0,0.014924]
[1721426008132,1.3746053,67053.0,67052.0,0.028924]
[1721426008666,1.37494187,67053.0,67052.0,0.028924]
[1721426011806,1.3748456,67053.0,67052.0,0.028924]
[1721426013168,1.3748456,67053.0,67052.0,0.014924]
[1721426013572,1.3748456,67053.0,67052.0,0.017924]
[1721426015226,1.37460724,67053.0,67052.0,0.017924]
[1721426017086,1.36289567,67053.0,67052.0,0.017924]
[1721426018445,1.36282394,67053.0,67052.0,0.017924]
[1721426020882,1.63126794,67053.0,67052.0,0.017924]
[1721426021101,1.65434837,67053.0,67052.0,0.017924]
[1721426021551,1.61333391,67053.0,67052.0,0.017924]
[1721426021764,1.80929996,67053.0,67052.0,0.017924]
[1721426021998,1.80930053,67053.0,67052.0,0.003924]
[1721426022225,1.80930053,67053.0,67052.0,0.017924]
[1721426022459,1.80930053,67053.0,67052.0,0.014924]
[1721426023042,1.65495096,67053.0,67052.0,0.014924]
[1721426023803,0.402768,67036.0,67035.0,0.4753]
[1721426024047,0.402768,67036.0,67035.0,0.15438174]
[1721426024303,0.4473957,67036.0,67035.0,0.15438174]
[1721426024551,0.53418481,67036.0,67035.0,0.15438174]
[1721426024822,0.489568,67036.0,67035.0,0.15438174]
[1721426025081,0.53419168,67036.0,67035.0,0.15438174]
[1721426025571,0.53419168,67036.0,67035.0,0.16838174]
[1721426025572,0.490568,67036.0,67035.0,0.16838174]
[1721426025817,0.490568,67036.0,67035.0,0.18238174]
[1721426026064,0.75908,67036.0,67035.0,0.028]
[1721426026296,0.490568,67036.0,67035.0,0.028]
[1721426026791,0.222056,67036.0,67035.0,0.32488174]
[1721426027768,0.222056,67036.0,67035.0,0.26218174]
[1721426028031,0.222056,67036.0,67035.0,0.18238174]
[1721426029012,0.0878,67036.0,67035.0,0.18238174]
[1721426032638,0.24233394,67036.0,67035.0,0.18238174]
[1721426033131,0.09683394,67036.0,67035.0,0.18238174]
[1721426033537,0.09683394,67036.0,67035.0,0.18330574]
[1721426033948,0.23108994,67036.0,67035.0,0.18330574]
[1721426035223,0.09683394,67036.0,67035.0,0.32380574]
[1721426038634,0.09683394,67036.0,67035.0,0.26160574]
[1721426038788,0.23108994,67036.0,67035.0,0.028924]
[1721426040410,0.09683394,67036.0,67035.0,0.169424]
[1721426042113,0.09683394,67036.0,67035.0,0.107224]
[1721426050013,0.23108994,67036.0,67035.0,0.107224]
[1721426052367,0.09683394,67036.0,67035.0,0.107224]
[1721426052909,0.09683394,67036.0,67035.0,0.028924]
[1721426053109,0.13891638,67036.0,67035.0,0.028924]
[1721426053515,0.54168438,67036.0,67035.0,0.028924]
[1721426053697,0.60418438,67036.0,67035.0,0.028924]
[1721426054259,0.73039424,67036.0,67035.0,0.028924]
[1721426054638,0.60418438,67036.0,67035.0,0.028924]
[1721426055797,0.65975364,67036.0,67035.0,0.028924]
[1721426056005,0.70437767,67036.0,67035.0,0.028924]
[1721426056503,0.65975364,67036.0,67035.0,0.028924]
[1721426056751,0.65983971,67036.0,67035.0,0.028924]
[1721426056954,0.70446786,67036.0,67035.0,0.028924]
[1721426057300,0.64196786,67036.0,67035.0,0.028924]
[1721426057991,0.37345586,67036.0,67035.0,0.028924]
[1721426058454,0.32882771,67036.0,67035.0,0.028924]
[1721426059802,0.2866592,67036.0,67035.0,0.028924]
[1721426060013,0.3287767,67036.0,67035.0,0.110924]
[1721426060431,0.39574609,67036.0,67035.0,0.028924]
[1721426062334,0.3287767,67036.0,67035.0,0.028924]
[1721426063367,0.41806922,67036.0,67035.0,0.028924]
[1721426064352,0.44039236,67036.0,67035.0,0.028924]
[1721426065351,0.4706767,67036.0,67035.0,0.028924]
[1721426066366,0.39046477,67036.0,67035.0,0.028924]
[1721426068021,0.32916477,67036.0,67035.0,0.028924]
[1721426069181,0.59767677,67036.0,67035.0,0.028924]
[1721426069657,0.5551712,67036.0,67035.0,0.028924]
[1721426069830,0.59750281,67036.0,67035.0,0.028924]
[1721426070792,0.51070281,67036.0,67035.0,0.028924]
[1721426071208,0.59750281,67036.0,67035.0,0.028924]
[1721426071618,0.86601481,67036.0,67035.0,0.028924]
[1721426071819,1.00711481,67036.0,67035.0,0.028924]
[1721426072420,1.00743762,67036.0,67035.0,0.028924]
[1721426072931,0.9647832,67036.0,67035.0,0.028924]
[1721426073165,1.00743776,67036.0,67035.0,0.028924]
[1721426075699,1.27594976,67036.0,67035.0,0.028924]
[1721426076270,1.27613824,67036.0,67035.0,0.028924]
[1721426079158,1.41021099,67036.0,67035.0,0.028924]
[1721426079360,1.41024088,67036.0,67035.0,0.014924]
[1721426079560,1.27617038,67036.0,67035.0,0.022924]
[1721426080199,1.27517038,67036.0,67035.0,0.008924]
[1721426080413,1.27617038,67036.0,67035.0,0.022924]
[1721426080772,1.27617038,67036.0,67035.0,0.008924]
[1721426080999,1.27717038,67036.0,67035.0,0.014924]
[1721426081211,1.27717038,67036.0,67035.0,0.023924]
[1721426082528,1.45493712,67036.0,67035.0,0.023924]
[1721426082931,1.27758755,67036.0,67035.0,0.023924]
[1721426085796,1.27743304,67036.0,67035.0,0.023924]
[1721426089022,1.27770336,67036.0,67035.0,0.023924]
[1721426089429,1.27769089,67036.0,67035.0,0.023924]
[1721426090733,1.2342952,67036.0,67035.0,0.023924]
[1721426090945,1.27767099,67036.0,67035.0,0.023924]
[1721426091529,1.2342952,67036.0,67035.0,0.023924]
[1721426091726,1.27775881,67036.0,67035.0,0.023924]
[1721426092341,1.2342952,67036.0,67035.0,0.023924]
[1721426092542,1.27768143,67036.0,67035.0,0.023924]
[1721426093963,1.77357517,67036.0,67035.0,0.023924]
[1721426095188,1.92792474,67036.0,67035.0,0.023924]
[1721426095516,1.88453851,67036.0,67035.0,0.023924]
[1721426095743,1.92824189,67036.0,67035.0,0.023924]
[1721426095919,1.9282418,67036.0,67035.0,0.023924]
[1721426097079,1.77389223,67036.0,67035.0,0.023924]
[1721426098740,1.73018894,67036.0,67035.0,0.023924]
[1721426098965,1.77387508,67036.0,67035.0,0.023924]
[1721426100324,1.77287508,67036.0,67035.0,0.023924]
[1721426100523,0.57435734,67036.0,67035.0,0.000924]
[1721426100836,0.86736934,67036.0,67035.0,0.014924]
[1721426101240,0.8236832,67036.0,67035.0,0.014924]
[1721426101432,0.86739793,67036.0,67035.0,0.019924]
[1721426102640,0.59888593,67036.0,67035.0,0.019924]
[1721426102977,0.10931793,67036.0,67035.0,0.168524]
[1721426103189,0.24357393,67036.0,67035.0,0.168524]
[1721426103402,0.10931793,67036.0,67035.0,0.168524]
[1721426103573,0.22097378,67036.0,67035.0,0.168524]
[1721426103979,0.33037393,67036.0,67035.0,0.168524]
[1721426104623,0.24357393,67036.0,67035.0,0.168524]
[1721426104842,0.22097774,67036.0,67035.0,0.168524]
[1721426105264,0.10931793,67036.0,67035.0,0.168524]
[1721426105635,0.19611793,67036.0,67035.0,0.168524]
[1721426107589,0.1524032,67036.0,67035.0,0.168524]
[1721426107798,0.30772728,67036.0,67035.0,0.168524]
[1721426111023,0.30759419,67036.0,67035.0,0.168524]
[1721426112081,0.22079419,67036.0,67035.0,0.168524]
[1721426112283,0.30759419,67036.0,67035.0,0.168524]
[1721426113112,0.30759419,67036.0,67035.0,0.102624]
[1721426113336,0.19595969,67036.0,67035.0,0.102624]
[1721426114218,0.19574431,67036.0,67035.0,0.102624]
[1721426116110,0.33000031,67036.0,67035.0,0.102624]
[1721426116325,0.33000031,67036.0,67035.0,0.019924]
[1721426117105,0.33000031,67036.0,67035.0,0.165524]
[1721426120093,0.19574431,67036.0,67035.0,0.165524]
[1721426121114,0.30736114,67036.0,67035.0,0.165524]
[1721426121524,0.30736114,67036.0,67035.0,0.31990574]
[1721426122295,0.22946513,67036.0,67035.0,0.31990574]
[1721426123453,0.14017505,67036.0,67035.0,0.31990574]
[1721426123658,0.13979,67036.0,67035.0,0.31990574]
[1721426124033,0.13979,67036.0,67035.0,0.45416374]
[1721426124259,0.09683394,67036.0,67035.0,0.31990574]
[1721426124867,0.13967808,67036.0,67035.0,0.31990574]
[1721426125124,0.22890645,67036.0,67035.0,0.31990574]
[1721426125527,0.13967808,67036.0,67035.0,0.31990574]
[1721426126284,0.16375254,67036.0,67035.0,0.31990574]
[1721426127176,0.09683394,67036.0,67035.0,0.31990574]
[1721426127354,0.20654007,67036.0,67035.0,0.31990574]
[1721426127728,0.16375047,67036.0,67035.0,0.31990574]
[1721426127932,0.20650439,67036.0,67035.0,0.31990574]
[1721426128094,0.1396164,67036.0,67035.0,0.31990574]
[1721426128292,0.20650463,67036.0,67035.0,0.31990574]
[1721426128538,0.16372217,67036.0,67035.0,0.31990574]
[1721426128742,0.09683394,67036.0,67035.0,0.31990574]
[1721426128939,0.20636046,67036.0,67035.0,0.31990574]
[1721426130152,0.09683394,67036.0,67035.0,0.31990574]
[1721426130335,0.13949736,67036.0,67035.0,0.31990574]
[1721426132705,0.14142008,67036.0,67035.0,0.31990574]
[1721426133533,0.09683394,67036.0,67035.0,0.31990574]
[1721426133737,0.14141904,67036.0,67035.0,0.31990574]
[1721426134125,0.13936601,67036.0,67035.0,0.31990574]
[1721426134320,0.14141918,67036.0,67035.0,0.31990574]
[1721426134723,0.13935752,67036.0,67035.0,0.31990574]
[1721426135111,0.1414188,67036.0,67035.0,0.31990574]
[1721426136760,0.1414182,67036.0,67035.0,0.31990574]
[1721426140070,0.14143445,67036.0,67035.0,0.31990574]
[1721426141467,0.13934143,67036.0,67035.0,0.31990574]
[1721426141615,0.09683394,67036.0,67035.0,0.31990574]
[1721426142373,0.20627859,67036.0,67035.0,0.31990574]
[1721426142759,0.09683394,67036.0,67035.0,0.31990574]
[1721426143364,0.16374975,67036.0,67035.0,0.31990574]
[1721426143561,0.20631258,67036.0,67035.0,0.31990574]
[1721426144562,0.20633072,67036.0,67035.0,0.25640574]
[1721426144761,0.95297677,67036.0,67035.0,0.019924]
[1721426144971,1.00845897,67036.0,67035.0,0.019924]
[1721426145167,1.52734615,67036.0,67035.0,0.019924]
[1721426145415,1.38849732,67036.0,67035.0,0.019924]
[1721426145559,1.27697097,67036.0,67035.0,0.019924]
[1721426149601,0.77935897,67036.0,67035.0,0.019924]
[1721426149809,0.86744082,67036.0,67035.0,0.019924]
[1721426150486,0.86744082,67036.0,67034.0,0.001014]
[1721426150487,0.45785,67035.0,67034.0,0.001014]
[1721426150614,0.66874738,67035.0,67034.0,0.001014]
[1721426151020,0.66864809,67035.0,67034.0,0.001014]
[1721426151671,0.55707758,67035.0,67034.0,0.001014]
[1721426151901,0.66865066,67035.0,67034.0,0.001014]
[1721426152580,0.67665066,67035.0,67034.0,0.002014]
[1721426152811,0.56507758,67035.0,67034.0,0.002014]
[1721426153104,0.56538296,67035.0,67034.0,0.002014]
[1721426153304,0.56538296,67035.0,67034.0,0.008014]
[1721426156269,0.56537922,67035.0,67034.0,0.008014]
[1721426156734,0.56537945,67035.0,67034.0,0.008014]
[1721426157344,0.83389545,67035.0,67034.0,0.008014]
[1721426158893,0.83389545,67035.0,67034.0,0.22779574]
[1721426158894,0.16268106,67035.0,67034.0,0.22779574]
[1721426159058,0.36104984,67035.0,67034.0,0.30799574]
[1721426159466,0.36104523,67035.0,67034.0,0.30799574]
[1721426159949,1.0617702,67035.0,67034.0,0.16239574]
[1721426160150,1.0617702,67035.0,67034.0,0.008014]
[1721426160379,0.9818702,67035.0,67034.0,0.008014]
[1721426160542,0.9207702,67035.0,67034.0,0.008014]
[1721426161848,0.8766482,67035.0,67034.0,0.008014]
[1721426162021,0.92072974,67035.0,67034.0,0.008014]
[1721426165208,0.92060002,67035.0,67034.0,0.008014]
[1721426165618,1.03211164,67035.0,67034.0,0.008014]
[1721426166026,0.92060002,67035.0,67034.0,0.008014]
[1721426168329,0.8766482,67035.0,67034.0,0.008014]
[1721426168533,0.92056968,67035.0,67034.0,0.008014]
[1721426170294,1.03205717,67035.0,67034.0,0.008014]
[1721426170498,0.92056968,67035.0,67034.0,0.008014]
[1721426170697,1.03205691,67035.0,67034.0,0.008014]
[1721426171203,1.03205625,67035.0,67034.0,0.008014]
[1721426171635,0.8766482,67035.0,67034.0,0.008014]
[1721426171784,0.92037561,67035.0,67034.0,0.008014]
[1721426174104,1.18889161,67035.0,67034.0,0.008014]
[1721426174514,1.27219161,67035.0,67034.0,0.008014]
[1721426174916,0.60090368,67035.0,67031.0,1.4e-05]
[1721426175125,0.84730622,67032.0,67031.0,1.4e-05]
[1721426175324,0.9465179,67032.0,67031.0,1.4e-05]
[1721426176180,0.9465179,67032.0,67031.0,0.006014]
[1721426176693,0.85733168,67032.0,67031.0,0.007014]
[1721426177007,1.12585968,67032.0,67031.0,0.006014]
[1721426177215,1.18845968,67032.0,67031.0,0.006014]
[1721426177440,1.20245968,67032.0,67031.0,0.007014]
[1721426177620,1.20245968,67032.0,67031.0,1.4e-05]
[1721426178026,1.21645968,67032.0,67031.0,0.010014]
[1721426178228,1.21654932,67032.0,67031.0,0.010014]
[1721426178740,1.21654932,67032.0,67031.0,0.001014]
[1721426178946,1.15394932,67032.0,67031.0,0.151414]
[1721426179895,1.15394932,67032.0,67031.0,0.087014]
[1721426180097,1.32801085,67032.0,67031.0,0.004014]
[1721426181341,1.1727302,67032.0,67031.0,0.004014]
[1721426181528,1.32785823,67032.0,67031.0,0.004014]
[1721426184729,1.32789935,67032.0,67031.0,0.004014]
[1721426187492,1.21645457,67032.0,67031.0,0.004014]
[1721426188061,1.21662857,67032.0,67031.0,0.004014]
[1721426189862,1.31662857,67032.0,67031.0,0.004014]
[1721426191271,1.31668939,67032.0,67031.0,0.004014]
[1721426192716,1.31668939,67032.0,67031.0,0.004938]
[1721426193139,1.31752939,67032.0,67031.0,0.004938]
[1721426194591,1.31769816,67032.0,67031.0,0.004938]
[1721426197884,1.31787935,67032.0,67031.0,0.004938]
[1721426199065,1.39807935,67032.0,67031.0,0.004938]
[1721426199470,1.55242892,67032.0,67031.0,0.004938]
[1721426200171,1.39807935,67032.0,67031.0,0.004938]
[1721426200975,1.3537702,67032.0,67031.0,0.004938]
[1721426201217,1.39657447,67032.0,67031.0,0.004938]
[1721426204338,1.39666106,67032.0,67031.0,0.004938]
[1721426207497,1.39679447,67032.0,67031.0,0.004938]
[1721426207696,1.39679382,67032.0,67031.0,0.004938]
[1721426209491,1.16719382,67032.0,67031.0,0.004938]
[1721426209693,1.25399382,67032.0,67031.0,0.004938]
[1721426209891,0.89866582,67032.0,67031.0,0.29451974]
[1721426210136,0.98546582,67032.0,67031.0,0.29451974]
[1721426211357,0.98537954,67032.0,67031.0,0.29451974]
[1721426214254,0.98553115,67032.0,67031.0,0.29451974]
[1721426217292,0.9424422,67032.0,67031.0,0.29451974]
[1721426217494,0.98552315,67032.0,67031.0,0.29451974]
[1721426220578,0.98568834,67032.0,67031.0,0.29451974]
[1721426220982,0.98568823,67032.0,67031.0,0.29451974]
[1721426221530,1.25421623,67032.0,67031.0,0.004938]
[1721426221741,1.32051623,67032.0,67031.0,0.004938]
[1721426221978,1.39921623,67032.0,67031.0,0.004938]
[1721426223016,1.3991859,67032.0,67031.0,0.004938]
[1721426223392,1.39924639,67032.0,67031.0,0.004938]
[1721426223994,1.53298218,67032.0,67031.0,0.004938]
[1721426224194,1.53298218,67032.0,67024.0,0.062852]
[1721426224195,0.134278,67025.0,67024.0,0.062852]
[1721426224551,0.134278,67025.0,67024.0,0.22707194]
[1721426224552,0.77014839,67025.0,67024.0,0.22707194]
[1721426225507,0.77014839,67025.0,67024.0,0.16421994]
[1721426225712,0.78514839,67025.0,67024.0,0.17621994]
[1721426225911,0.78514839,67025.0,67024.0,0.16638174]
[1721426226160,0.7418722,67025.0,67024.0,0.1699088]
[1721426226324,0.7418722,67025.0,67024.0,0.16730574]
[1721426226325,1.05384105,67025.0,67024.0,0.16730574]
[1721426226555,1.05284105,67025.0,67024.0,0.15630574]
[1721426227111,1.05384105,67025.0,67024.0,0.16430574]
[1721426227305,1.05384105,67025.0,67024.0,0.24570574]
[1721426227751,1.05384105,67025.0,67024.0,0.2492328]
[1721426227932,1.12664105,67025.0,67024.0,0.2482328]
[1721426228349,1.14064105,67025.0,67024.0,0.2482328]
[1721426229384,1.14035201,67025.0,67024.0,0.2482328]
[1721426229738,1.14035201,67025.0,67024.0,0.24470574]
[1721426230040,1.14035201,67025.0,67024.0,0.2483468]
[1721426232170,1.25179851,67025.0,67024.0,0.2483468]
[1721426232399,1.25179851,67025.0,67024.0,0.24470574]
[1721426232736,1.25185377,67025.0,67024.0,0.24470574]
[1721426232861,1.25185377,67025.0,67024.0,0.2483468]
[1721426233203,1.25185377,67025.0,67024.0,0.24470574]
[1721426233443,1.25185377,67025.0,67024.0,0.2483468]
[1721426234058,1.250968,67025.0,67024.0,0.2483468]
[1721426235603,1.25976822,67025.0,67024.0,0.2483468]
[1721426235808,1.25976822,67025.0,67024.0,0.24470574]
[1721426236029,1.21660403,67025.0,67024.0,0.24470574]
[1721426236209,1.25980737,67025.0,67024.0,0.24470574]
[1721426238108,1.25980737,67025.0,67024.0,0.16330574]
[1721426238507,1.25980737,67025.0,67024.0,0.17325794]
[1721426239159,1.21660403,67025.0,67024.0,0.17325794]
[1721426239368,1.25976987,67025.0,67024.0,0.16330574]
[1721426241191,1.14830849,67025.0,67024.0,0.16330574]
[1721426242178,1.25976987,67025.0,67024.0,0.16330574]
[1721426242585,1.25970843,67025.0,67024.0,0.16330574]
[1721426245736,1.10514265,67025.0,67024.0,0.16330574]
[1721426245939,1.25980916,67025.0,67024.0,0.16330574]
[1721426247111,1.2820995,67025.0,67024.0,0.16330574]
[1721426247333,1.56421347,67025.0,67024.0,0.008924]
[1721426248473,1.06155747,67025.0,67024.0,0.008924]
[1721426249036,1.06218167,67025.0,67024.0,0.008924]
[1721426252441,1.062109,67025.0,67024.0,0.008924]
[1721426252860,1.148909,67025.0,67024.0,0.008924]
[1721426258358,1.149749,67025.0,67024.0,0.008924]
[1721426258999,1.14963772,67025.0,67024.0,0.008924]
[1721426260324,1.24963772,67025.0,67024.0,0.008924]
[1721426260899,1.39693772,67025.0,67024.0,0.008924]
[1721426265313,1.35328265,67025.0,67024.0,0.008924]
[1721426265495,1.39707871,67025.0,67024.0,0.008924]
[1721426265805,1.66563471,67025.0,67024.0,0.008924]
[1721426268464,1.62183865,67025.0,67024.0,0.008924]
[1721426268662,1.66560589,67025.0,67024.0,0.008924]
[1721426270057,1.81995546,67025.0,67024.0,0.008924]
[1721426270221,1.66560589,67025.0,67024.0,0.008924]
[1721426271638,1.66568905,67025.0,67024.0,0.008924]
[1721426272964,1.39713305,67025.0,67024.0,0.008924]
[1721426273609,1.53047315,67025.0,67024.0,0.008924]
[1721426273817,1.79902915,67025.0,67024.0,0.008924]
[1721426275039,1.78420354,67025.0,67024.0,0.000924]
[1721426275264,1.78620354,67025.0,67024.0,0.000924]
[1721426275512,1.45014754,67025.0,67024.0,0.000924]
[1721426275726,1.31677914,67025.0,67024.0,0.000924]
[1721426277836,1.31677914,67025.0,67024.0,0.082424]
[1721426277837,1.25097914,67025.0,67024.0,0.082424]
[1721426278213,1.20698265,67025.0,67024.0,0.082424]
[1721426278412,1.25095477,67025.0,67024.0,0.082424]
[1721426279822,1.25095477,67025.0,67024.0,0.000924]
[1721426280813,1.20698265,67025.0,67024.0,0.000924]
[1721426281209,1.25080574,67025.0,67024.0,0.000924]
[1721426283997,1.25077125,67025.0,67024.0,0.000924]
[1721426284195,1.25077112,67025.0,67024.0,0.000924]
[1721426285112,1.39789054,67025.0,67024.0,0.000924]
[1721426285317,1.39037112,67025.0,67024.0,0.000924]
[1721426285897,1.25077112,67025.0,67024.0,0.000924]
[1721426287120,1.25078322,67025.0,67024.0,0.000924]
[1721426287689,1.25078319,67025.0,67024.0,0.000924]
[1721426288749,1.38415173,67025.0,67024.0,0.000924]
[1721426289839,1.38412653,67025.0,67024.0,0.000924]
[1721426290296,1.38418459,67025.0,67024.0,0.000924]
[1721426290513,1.38420345,67025.0,67024.0,0.000924]
[1721426291108,1.25076467,67025.0,67024.0,0.000924]
[1721426293446,1.20698265,67025.0,67024.0,0.000924]
[1721426293593,1.25061913,67025.0,67024.0,0.000924]
[1721426294219,1.25059579,67025.0,67024.0,0.000924]
[1721426296753,1.25060145,67025.0,67024.0,0.000924]
[1721426297411,1.25060145,67025.0,67024.0,0.079524]
[1721426298497,1.25060145,67025.0,67024.0,0.141024]
[1721426299885,1.20698265,67025.0,67024.0,0.141024]
[1721426300088,1.25049156,67025.0,67024.0,0.141024]
[1721426300292,1.25049156,67025.0,67024.0,0.079524]
[1721426303208,1.20698265,67025.0,67024.0,0.079524]
[1721426303417,1.25004342,67025.0,67024.0,0.000924]
[1721426309780,1.24774553,67025.0,67024.0,0.000924]
[1721426312978,1.20648692,67025.0,67024.0,0.000924]
[1721426313169,1.2477714,67025.0,67024.0,0.000924]
[1721426316361,1.2468669,67025.0,67024.0,0.000924]
[1721426319534,1.24615698,67025.0,67024.0,0.000924]
[1721426320421,1.39045698,67025.0,67024.0,0.000924]
[1721426321265,1.31255698,67025.0,67024.0,0.000924]